[Event "Marshall CC Premier 01-2025"]
[Site "New York"]
[Date "2025.01.05"]
[Round "3.4"]
[White "Hyatt, Jessica"]
[Black "Schaefer, Sasha Milo"]
[Result "0-1"]
[ECO "D36"]
[WhiteElo "1979"]
[BlackElo "1976"]
[Annotator "RC"]
[PlyCount "78"]
[EventDate "2025.01.03"]
[EventType "swiss"]
[EventCountry "USA"]
[SourceTitle "playchess.com"]
[Source "ChessBase"]
[SourceQuality "1"]
[TimeControl "5400+30"]

1. d4 {[%emt 0:00:02]} d5 {[%emt 0:00:03]} 2. c4 {[%emt 0:00:08]} e6 {[%emt 0:00:03]} 3. Nf3 {[%emt 0:00:08]} Nf6 {[%emt 0:00:04]} 4. cxd5 {[%emt 0:00:07]} exd5 {[%emt 0:00:07]} 5. Nc3 {[%emt 0:00:05]} c6 {[%emt 0:00:55]} 6. Bg5 {[%emt 0:00:10]} h6 {[%emt 0:00:20]} 7. Bh4 {[%emt 0:00:10]} Be7 {[%emt 0:00:13]} 8. Qc2 {[%emt 0:00:52]} O-O {[%emt 0:00:08]} 9. e3 {[%emt 0:00:05]} Re8 {[%emt 0:00:35]} 10. Bd3 {[%emt 0:00:28]} Ne4 {[%emt 0:00:31]} 11. Bg3 {[%emt 0:01:40]} f5 {[%emt 0:13:10]} 12. Ne5 {[%emt 0:01:49]} Bf6 {[%emt 0:03:02]} 13. f4 {[%emt 0:03:00]} Bxe5 {[%emt 0:05:49]} 14. fxe5 {[%emt 0:00:23]} a5 {[%emt 0:08:20]} 15. O-O {[%emt 0:03:45]} Na6 {[%emt 0:01:18]} 16. a3 {[%emt 0:00:17]} Nc7 {[%emt 0:02:26]} 17. Nxe4 {[%emt 0:12:18]} dxe4 {[%emt 0:04:57]} 18. Bc4+ {[%emt 0:01:39]} Nd5 {[%emt 0:03:00]} 19. Qb3 {[%emt 0:00:32]} Be6 {[%emt 0:06:53]} 20. Qxb7 {[%emt 0:23:04]} Nxe3 {[%emt 0:02:17]} 21. Bxe6+ {[%emt 0:00:14]} Rxe6 {[%emt 0:00:05]} 22. Qb3 {[%emt 0:00:18]} Nd5 {[%emt 0:00:19]} 23. Rxf5 {[%emt 0:00:48]} Rb8 {[%emt 0:00:38]} 24. Qc4 {[%emt 0:05:19]} Rxb2 {[%emt 0:01:21]} 25. Re1 {[%emt 0:00:52]} e3 {[%emt 0:08:40]} 26. Rf3 {[%emt 0:26:12]} Qd7 {[%emt 0:10:45]} 27. Qd3 {[%emt 0:10:54]} Re8 {[%emt 0:06:29]} 28. Qg6 {[%emt 0:02:05]} Rd2 {[%emt 0:11:41]} 29. Qe4 {[%emt 0:02:43]} a4 {[%emt 0:02:02]} 30. Ref1 {[%emt 0:01:49]} Qe6 {[%emt 0:01:09]} 31. Bf4 {[%emt 0:00:58]} Ra2 {[%emt 0:07:22]} 32. Bxe3 {[%emt 0:03:00]} Rxa3 {[%emt 0:00:12]} 33. Bc1 {[%emt 0:00:10]} Rxf3 {[%emt 0:00:27]} 34. Qxf3 {[%emt 0:00:11]} Rb8 {[%emt 0:00:41]} 35. Ba3 {[%emt 0:00:25]} Rb3 {[%emt 0:00:30]} 36. Qf8+ {[%emt 0:00:04]} Kh7 {[%emt 0:00:09]} 37. h3 {[%emt 0:00:41]} Rg3 {[%emt 0:00:38]} 38. Rf3 {[%emt 0:00:47]} Qxh3 {[%emt 0:01:23]} 39. Qc5 {[%emt 0:01:16]} Qxg2# {[%emt 0:00:13]} 0-1

[Event "Marshall CC Premier 01-2025"]
[Site "New York"]
[Date "2025.01.05"]
[Round "3.5"]
[White "Belenky, Nicholas"]
[Black "Rohde, Michael"]
[Result "0-1"]
[ECO "B90"]
[WhiteElo "1977"]
[BlackElo "2269"]
[Annotator "TA"]
[PlyCount "66"]
[EventDate "2025.01.03"]
[EventType "swiss"]
[EventCountry "USA"]
[SourceTitle "playchess.com"]
[Source "ChessBase"]
[SourceQuality "1"]
[TimeControl "5400+30"]

{[%evp 20,66,34,0,15,-4,0,-11,13,-35,-15,-16,13,-61,0,-22,0,0,8,18,19,20,22,20,20,19,52,25,32,34,38,0,25,-39,0,-7,0,-157,-148,-138,-151,-194,-184,-234,-212,-351,-349,-717,-724]} 1. e4 {[%emt 0:00:02]} c5 {[%emt 0:00:03]} 2. Nf3 {[%emt 0:00:07]} d6 {[%emt 0:00:07]} 3. d4 {[%emt 0:00:09]} cxd4 {[%emt 0:00:04]} 4. Nxd4 {[%emt 0:00:05]} Nf6 {[%emt 0:00:02]} 5. Nc3 {[%emt 0:00:11]} a6 {[%emt 0:00:08]} 6. Be3 {[%emt 0:00:13]} Ng4 {[%emt 0:01:03]} 7. Bg5 {[%emt 0:00:55]} h6 {[%emt 0:00:15]} 8. Bh4 {[%emt 0:00:10]} g5 {[%emt 0:01:21]} 9. Bg3 {[%emt 0:00:08]} Bg7 {[%emt 0:00:15]} 10. h3 {[%emt 0:01:54]} Ne5 {[%emt 0:02:27]} 11. Be2 {[%emt 0:06:31]} Nbc6 {[%emt 0:00:11]} 12. Nxc6 {[%emt 0:01:18]} bxc6 {[%emt 0:00:15]} 13. O-O {[%emt 0:03:03]} O-O {[%emt 0:05:41]} 14. Kh2 {[%emt 0:11:01]} (14. Qd2 $11 {is superior.}) 14... Rb8 {[%emt 0:03:02]} 15. Rb1 {[%emt 0:04:11]} Qa5 {[%emt 0:05:20]} 16. Qd2 {[%emt 0:02:38]} (16. f4 $11 gxf4 17. Bxf4) 16... Be6 {[%emt 0:04:42] Black is more active.} 17. f4 $1 {[%emt 0:10:20]} Nc4 {[%emt 0:03:51]} 18. Bxc4 {[%emt 0:05:41]} Bxc4 {[%emt 0:13:44]} 19. Rf3 $1 {[%emt 0:06:14][%cal Bf1f3,Bf3d3,Bd3d4][%mdl 32]} f6 {[%emt 0:02:12]} (19... Bxa2 20. b4 Bxc3 (20... Qa3 21. Nd5 $16) 21. Qxc3 $16) 20. b3 {[%emt 0:06:24]} Bf7 {[%emt 0:00:58]} 21. f5 {[%emt 0:00:51]} Rbd8 {[%emt 0:01:23]} 22. Rd3 {[%emt 0:02:08][%cal Oc3d5] Strongly threatening Nd5!.} Kh7 {[%emt 0:01:08]} 23. a4 {[%emt 0:05:13]} Qb4 {[%emt 0:06:59]} 24. Rd4 {[%emt 0:02:19]} Qb7 {[%emt 0:00:18]} 25. b4 {[%emt 0:05:11]} h5 {[%emt 0:02:04]} 26. h4 {[%emt 0:08:48]} ({White should play} 26. a5 $11) 26... Bh6 {[%emt 0:00:47]} 27. hxg5 {[%emt 0:01:43]} Bxg5 {[%emt 0:00:09]} 28. Bf4 $2 {[%emt 0:00:08] [#]} (28. Qe2 $11) 28... Bxf4+ $1 $17 {[%emt 0:03:00]} (28... Rg8 29. Rf1 $17) 29. Qxf4 {[%emt 0:00:05]} Rg8 {[%emt 0:00:07]} 30. Rbd1 {[%emt 0:04:36]} Rg4 {[%emt 0:02:09]} 31. Qf3 {[%emt 0:00:17]} (31. Qf2 {was necessary.}) 31... Rdg8 $19 {[%emt 0:00:25]} 32. R1d2 {[%emt 0:00:48]} (32. Qf2 $142) 32... Qb8 {[%emt 0:01:39] Threatens to win with ...d5+.} ({Not} 32... Rg3 33. Qxg3 Rxg3 34. Kxg3 $19) 33. Ne2 $2 {[%emt 0:02:29]} (33. Qf2) 33... c5 {[%emt 0:04:02]} 0-1

[Event "Marshall CC Premier 01-2025"]
[Site "New York"]
[Date "2025.01.05"]
[Round "3.6"]
[White "Hebbar, Eshaan"]
[Black "Cheung, Kyle"]
[Result "1/2-1/2"]
[ECO "D31"]
[WhiteElo "2144"]
[BlackElo "1860"]
[Annotator "TA"]
[PlyCount "48"]
[EventDate "2025.01.03"]
[EventType "swiss"]
[EventCountry "USA"]
[SourceTitle "playchess.com"]
[Source "ChessBase"]
[SourceQuality "1"]
[TimeControl "5400+30"]

{[%evp 14,48,5,0,0,8,7,14,18,-47,-37,-37,0,0,0,-45,-18,-18,-18,-9,-20,-39,-52,-38,-36,-117,96,97,94,-14,-1,-28,-22,-19,-19,-18,-29]} 1. d4 {[%emt 0:02:13]} d5 {[%emt 0:00:01]} 2. c4 {[%emt 0:00:10]} e6 {[%emt 0:00:03]} 3. Nc3 {[%emt 0:00:03]} Be7 {[%emt 0:00:05]} 4. cxd5 {[%emt 0:00:07]} exd5 {[%emt 0:00:04]} 5. Bf4 {[%emt 0:00:07]} c6 {[%emt 0:00:04]} 6. e3 {[%emt 0:00:04]} Bf5 {[%emt 0:00:05]} 7. g4 {[%emt 0:00:15]} Be6 {[%emt 0:00:01]} 8. h4 {[%emt 0:00:08]} Bxh4 {[%emt 0:00:03]} 9. Qb3 {[%emt 0:00:06]} g5 {[%emt 0:00:04]} 10. Be5 {[%emt 0:05:51]} f6 {[%emt 0:00:01]} 11. Bxb8 {[%emt 1:26:56]} (11. Qxb7 fxe5 12. Qxa8 Qb6 $14) (11. Bh2 $1 $11 Qb6 12. Qc2) 11... Qxb8 $15 {[%emt 0:08:11]} 12. Nf3 {[%emt 0:00:00]} Bxg4 {[%emt 0:03:13]} 13. Nxh4 {[%emt 0:00:00]} gxh4 {[%emt 0:00:03]} 14. e4 {[%emt 0:00:00]} Ne7 {[%emt 0:12:28]} 15. Rxh4 {[%emt 0:00:00]} h5 {[%emt 0:01:41]} 16. Be2 {[%emt 0:00:00]} Bxe2 {[%emt 0:02:27]} 17. Nxe2 {[%emt 0:00:00]} Qc7 {[%emt 0:01:45]} 18. exd5 {[%emt 0:00:00]} Nxd5 {[%emt 1:09:11] Strongly threatening ...Qa5+.} 19. Re4+ {[%emt 0:00:00]} (19. Qh3 $15) 19... Ne7 $2 {[%emt 0:00:00]} (19... Kf7 $17 {stays on course.} 20. Rc1 Qb6) 20. Qe6 $16 {[%emt 0:00:00][%cal Oe2g3] White has more active pieces. The black rooks are passive.} Rf8 {[%emt 0:00:00]} 21. Ng3 {[%emt 0:00:00]} ({Better is} 21. O-O-O $16 {and Re1 would now be decisive} Qd7 22. Nf4) 21... Qd7 $11 {[%emt 0:00:00]} 22. Nxh5 {[%emt 0:00:00]} Qxe6 {[%emt 0:00:00]} 23. Rxe6 {[%emt 0:00:00]} Rh8 {[%emt 0:00:00]} 24. Ng3 {[%emt 0:00:00]} (24. Nxf6+ $2 {perishes.} Kf7 25. Rd6 Rh1+ 26. Kd2 Rxa1 $19) 24... Kf7 {[%emt 0:00:00]} 1/2-1/2

[Event "Marshall CC Premier 01-2025"]
[Site "New York"]
[Date "2025.01.05"]
[Round "3.7"]
[White "Mottola, Max"]
[Black "Berg, George"]
[Result "1-0"]
[ECO "B50"]
[WhiteElo "2132"]
[BlackElo "1893"]
[Annotator "TA"]
[PlyCount "25"]
[EventDate "2025.01.03"]
[EventType "swiss"]
[EventCountry "USA"]
[SourceTitle "playchess.com"]
[Source "ChessBase"]
[SourceQuality "1"]
[TimeControl "5400+30"]

{[%evp 9,25,1,24,16,18,17,36,55,64,46,66,53,110,83,1005,546,29994,29995]} 1. e4 {[%emt 0:00:03]} c5 {[%emt 0:00:05]} 2. Nf3 {[%emt 0:00:06]} d6 {[%emt 0:00:05]} 3. Nc3 {[%emt 0:00:05]} Nf6 {[%emt 0:00:25]} 4. e5 {[%emt 0:00:07]} dxe5 {[%emt 0:00:13]} 5. Nxe5 {[%emt 0:00:07]} Nbd7 {[%emt 0:00:06]} 6. d4 {[%emt 0:00:18]} cxd4 {[%emt 0:17:37]} 7. Qxd4 {[%emt 0:00:08] and Qa4 would now be decisive} Nxe5 {[%emt 0:00:05]} 8. Qxe5 {[%emt 0:00:08]} a6 {[%emt 0:00:03] Dodges Nb5} 9. Bg5 {[%emt 0:09:10][%cal Of1b5] White is more active.} Be6 {[%emt 0:12:10]} 10. g3 {[%emt 0:03:31]} Qb6 {[%emt 0:02:14] [#]} (10... Nd7 $14 11. Qd4 Qb6) 11. O-O-O $1 $16 {[%emt 0:05:41]} Qxf2 $2 {[%emt 0:05:11][%mdl 8192]} (11... Ng4 $16 12. Nd5 Nxe5 13. Nxb6 Rd8) 12. Bxf6 {[%emt 0:06:03][%cal Of1b5] White wants to mate with Bb5+!.} exf6 {[%emt 0:02:30] [#]} 13. Bb5+ $1 {[%emt 0:00:32][%mdl 512]} 1-0

[Event "Marshall CC Premier 01-2025"]
[Site "New York"]
[Date "2025.01.05"]
[Round "3.8"]
[White "Ling, Chenxuan"]
[Black "Muthukumaran, Gurru"]
[Result "1-0"]
[ECO "A59"]
[WhiteElo "2081"]
[BlackElo "1878"]
[Annotator "TA"]
[PlyCount "95"]
[EventDate "2025.01.03"]
[EventType "swiss"]
[EventCountry "USA"]
[SourceTitle "playchess.com"]
[Source "ChessBase"]
[SourceQuality "1"]
[TimeControl "5400+30"]

{[%evp 21,95,70,60,72,93,53,82,32,89,93,133,136,131,143,138,128,136,141,137,130,151,143,152,146,174,163,323,322,331,324,325,287,279,195,281,285,285,281,287,0,239,234,222,228,283,172,202,0,271,230,262,253,608,589,626,610,605,587,622,620,672,618,721,706,722,718,739,727,920,831,813,720,783,783,1403,1316]} 1. d4 {[%emt 0:02:55]} Nf6 {[%emt 0:02:10]} 2. c4 {[%emt 0:00:13]} c5 {[%emt 0:00:07]} 3. d5 {[%emt 0:00:07]} b5 {[%emt 0:00:07]} 4. cxb5 {[%emt 0:00:06]} a6 {[%emt 0:00:05]} 5. bxa6 {[%emt 0:00:09]} Bxa6 {[%emt 0:00:06]} 6. Nc3 {[%emt 0:00:06]} d6 {[%emt 0:00:10]} 7. e4 {[%emt 0:00:08]} Bxf1 {[%emt 0:00:06]} 8. Kxf1 {[%emt 0:00:10]} g6 {[%emt 0:00:04]} 9. g3 {[%emt 0:00:37]} Bg7 {[%emt 0:00:06]} 10. Kg2 {[%emt 0:00:06]} O-O {[%emt 0:00:06]} 11. Nf3 {[%emt 0:00:07]} Nbd7 {[%emt 0:00:05]} 12. a4 {[%emt 0:03:13]} Qa5 {[%emt 0:00:18]} 13. Ra3 {[%emt 0:05:40]} Rfb8 {[%emt 0:01:05]} 14. Nd2 {[%emt 0:03:54]} (14. Qc2 $16) 14... Ne8 {[%emt 0:04:11]} (14... Nb6 $1 $14) 15. Nb5 $16 {[%emt 0:02:20]} Qb4 {[%emt 0:06:03][%cal Oc5c4] [#]} 16. Qc2 $1 {[%emt 0:06:02]} Qa5 {[%emt 0:08:44]} 17. Nc4 {[%emt 0:03:20]} Qd8 {[%emt 0:03:21]} 18. b3 {[%emt 0:03:47] White is more active.} Nc7 {[%emt 0:02:37]} 19. Nxc7 {[%emt 0:01:20]} Qxc7 {[%emt 0:00:02]} 20. Bd2 {[%emt 0:01:33]} Ne5 {[%emt 0:05:14]} 21. Rb1 {[%emt 0:03:58]} Nd7 {[%emt 0:08:22]} 22. a5 {[%emt 0:03:35]} Rb5 {[%emt 0:05:22]} 23. Ra4 {[%emt 0:01:40]} Rab8 $2 {[%emt 0:05:30]} (23... Qc8 24. h4 Bd4) 24. Na3 $18 {[%emt 0:07:30]} R5b7 {[%emt 0:01:53]} 25. b4 {[%emt 0:05:52]} cxb4 {[%emt 0:02:07]} 26. Qxc7 {[%emt 0:00:57]} (26. Raxb4 Qxc2 27. Nxc2 Rxb4 28. Rxb4 (28. Nxb4 Nc5 $16) 28... Ra8 $18) 26... Rxc7 {[%emt 0:00:05]} 27. Raxb4 {[%emt 0:00:11]} Rxb4 {[%emt 0:01:51]} (27... Ra8 {keeps fighting.} 28. Rc4 Rca7) 28. Rxb4 {[%emt 0:01:14]} Ra7 {[%emt 0:01:54]} 29. Rc4 {[%emt 0:03:42]} Nc5 {[%emt 0:02:02]} 30. Rb4 $2 {[%emt 0:02:13]} (30. Bb4 $18) 30... h5 $2 {[%emt 0:01:40]} (30... Nd7 $1 $11) 31. Rb8+ {[%emt 0:08:27]} Kh7 {[%emt 0:00:08]} 32. f3 {[%emt 0:01:57]} Bf6 {[%emt 0:03:22]} 33. Nc4 {[%emt 0:01:00]} Rc7 {[%emt 0:02:56] ...Na6 would now be deadly.} 34. Na3 {[%emt 0:02:34]} Ra7 $1 {[%emt 0:01:38]} 35. Rb5 {[%emt 0:01:14]} Rc7 {[%emt 0:00:49]} 36. Be3 {[%emt 0:00:54] and Bxc5 should not be overlooked} Bc3 $2 {[%emt 0:06:57]} (36... Na6) 37. Bxc5 {[%emt 0:02:12]} dxc5 {[%emt 0:00:22][%mdl 4096] Endgame KRB-KRN. White is a pawn up.} 38. a6 {[%emt 0:00:35][%cal Ba5a6,Ba6a7][%mdl 32]} Ra7 {[%emt 0:01:32]} 39. Rb6 {[%emt 0:00:08]} (39. Rxc5 Bb4 40. Rc6 Bxa3 $15) 39... Ba5 {[%emt 0:03:39]} 40. Rc6 {[%emt 0:00:14]} Kg7 {[%emt 0:01:34]} 41. Nb5 {[%emt 0:00:09]} ({Stronger than} 41. Rxc5 Bb4 (41... Rxa6 42. Rc2 $16) 42. Rc6 Bxa3 $15) 41... Ra8 {[%emt 0:00:06]} 42. a7 {[%emt 0:00:12]} ({Weaker is} 42. Rxc5 Rxa6 43. Rc6 Ra8 $16) 42... Kf8 {[%emt 0:01:04]} 43. Rxc5 {[%emt 0:01:13]} Bb6 {[%emt 0:01:08]} 44. Rc6 {[%emt 0:00:16]} Ba5 {[%emt 0:00:10]} 45. Ra6 {[%emt 0:00:27]} Bd8 {[%emt 0:00:08]} 46. e5 {[%emt 0:00:43][%cal Be4e5,Be5e6][%mdl 32]} Ke8 {[%emt 0:00:10]} 47. e6 {[%emt 0:00:29]} f6 {[%emt 0:00:34]} 48. Kf2 {[%emt 0:00:23]} 1-0

[Event "Marshall CC Premier 01-2025"]
[Site "New York"]
[Date "2025.01.05"]
[Round "3.9"]
[White "Raparthi, Ankit"]
[Black "Dong, Kyle Qiyu"]
[Result "1/2-1/2"]
[ECO "B20"]
[WhiteElo "1941"]
[BlackElo "1998"]
[Annotator "RC"]
[PlyCount "54"]
[EventDate "2025.01.03"]
[EventType "swiss"]
[EventCountry "USA"]
[SourceTitle "playchess.com"]
[Source "ChessBase"]
[SourceQuality "1"]
[TimeControl "5400+30"]

1. e4 {[%emt 0:01:35]} c5 {[%emt 0:00:08]} 2. b3 {[%emt 0:00:08]} g6 {[%emt 0:00:26]} 3. Bb2 {[%emt 0:00:10]} Nf6 {[%emt 0:00:05]} 4. Nc3 {[%emt 0:00:37]} Nc6 {[%emt 0:02:08]} 5. Nd5 {[%emt 0:02:53]} Bg7 {[%emt 0:01:55]} 6. Nxf6+ {[%emt 0:00:05]} Bxf6 {[%emt 0:00:28]} 7. Bxf6 {[%emt 0:00:20]} exf6 {[%emt 0:00:06]} 8. Bc4 {[%emt 0:01:30]} Qe7 {[%emt 0:02:41]} 9. d3 {[%emt 0:05:07]} f5 {[%emt 0:00:46]} 10. f3 {[%emt 0:01:38]} Qh4+ {[%emt 0:20:15]} 11. g3 {[%emt 0:01:03]} Qf6 {[%emt 0:00:07]} 12. Ne2 {[%emt 0:14:57]} Nd4 {[%emt 0:20:03]} 13. O-O {[%emt 0:03:36]} O-O {[%emt 0:00:54]} 14. Nf4 {[%emt 0:01:22]} b5 {[%emt 0:01:00]} 15. Bd5 {[%emt 0:02:58]} Rb8 {[%emt 0:00:17]} 16. c3 {[%emt 0:11:35]} Nc6 {[%emt 0:08:28]} 17. Bxc6 {[%emt 0:06:56]} dxc6 {[%emt 0:00:22]} 18. d4 {[%emt 0:00:40]} Rd8 {[%emt 0:02:48]} 19. e5 {[%emt 0:03:09]} Qe7 {[%emt 0:00:16]} 20. Rc1 {[%emt 0:01:03]} b4 {[%emt 0:02:12]} 21. cxb4 {[%emt 0:01:51]} cxd4 {[%emt 0:13:09]} 22. Nd3 {[%emt 0:01:30]} Ba6 {[%emt 0:01:11]} 23. f4 {[%emt 0:02:18]} Bxd3 {[%emt 0:03:59]} 24. Qxd3 {[%emt 0:00:02]} Qxb4 {[%emt 0:00:01]} 25. Rxc6 {[%emt 0:01:02]} Rbc8 {[%emt 0:00:07]} 26. Qc4 {[%emt 0:12:17]} Qb7 {[%emt 0:04:36]} 27. Rxc8 {[%emt 0:01:44]} Rxc8 {[%emt 0:00:30]} 1/2-1/2

[Event "Marshall CC Premier 01-2025"]
[Site "New York"]
[Date "2025.01.05"]
[Round "3.10"]
[White "Gartenlaub, Corin"]
[Black "Debmisra, Ariv"]
[Result "1/2-1/2"]
[ECO "B39"]
[WhiteElo "2027"]
[BlackElo "1803"]
[Annotator "RC"]
[PlyCount "79"]
[EventDate "2025.01.03"]
[EventType "swiss"]
[EventCountry "USA"]
[SourceTitle "playchess.com"]
[Source "ChessBase"]
[SourceQuality "1"]
[TimeControl "5400+30"]

1. e4 {[%emt 0:00:01]} c5 {[%emt 0:04:47]} 2. Nf3 {[%emt 0:00:06]} g6 {[%emt 0:00:41]} 3. d4 {[%emt 0:00:02]} cxd4 {[%emt 0:00:09]} 4. Nxd4 {[%emt 0:00:03]} Nc6 {[%emt 0:00:11]} 5. c4 {[%emt 0:00:02]} Bg7 {[%emt 0:00:11]} 6. Be3 {[%emt 0:00:04]} Nf6 {[%emt 0:00:10]} 7. Nc3 {[%emt 0:00:02]} Ng4 {[%emt 0:00:10]} 8. Qxg4 {[%emt 0:00:06]} Nxd4 {[%emt 0:00:09]} 9. Qd1 {[%emt 0:00:03]} e5 {[%emt 0:00:13]} 10. Bd3 {[%emt 0:04:45]} O-O {[%emt 0:00:39]} 11. O-O {[%emt 0:00:59]} d6 {[%emt 0:00:21]} 12. f3 {[%emt 0:01:47]} Be6 {[%emt 0:00:10]} 13. Ne2 {[%emt 0:02:12]} Rc8 {[%emt 0:00:18]} 14. b3 {[%emt 0:02:14]} a6 {[%emt 0:00:17]} 15. Nxd4 {[%emt 0:05:44]} exd4 {[%emt 0:00:14]} 16. Bf2 {[%emt 0:00:22]} Qa5 {[%emt 0:00:30]} 17. Qe1 {[%emt 0:01:33]} Qc5 {[%emt 0:01:21]} 18. Qd2 {[%emt 0:09:38]} f5 {[%emt 0:06:59]} 19. exf5 {[%emt 0:05:06]} Bxf5 {[%emt 0:00:19]} 20. Bxf5 {[%emt 0:00:10]} Rxf5 {[%emt 0:00:12]} 21. Rfd1 {[%emt 0:03:50]} d5 {[%emt 0:00:34]} 22. Rac1 {[%emt 0:01:13]} Rd8 {[%emt 0:06:57]} 23. Bxd4 {[%emt 0:03:53]} Bxd4+ {[%emt 0:01:38]} 24. Qxd4 {[%emt 0:00:03]} dxc4 {[%emt 0:00:29]} 25. Qxc5 {[%emt 0:00:51]} Rxd1+ {[%emt 0:00:09]} 26. Rxd1 {[%emt 0:00:02]} Rxc5 {[%emt 0:00:15]} 27. Rc1 {[%emt 0:00:31]} c3 {[%emt 0:04:12]} 28. Rc2 {[%emt 0:04:21]} a5 {[%emt 0:00:52]} 29. a4 {[%emt 0:00:11]} Kf7 {[%emt 0:00:38]} 30. Kf2 {[%emt 0:00:04]} h5 {[%emt 0:00:39]} 31. Ke3 {[%emt 0:00:17]} b6 {[%emt 0:16:26]} 32. Kd4 {[%emt 0:00:14]} Ke6 {[%emt 0:00:05]} 33. Rxc3 {[%emt 0:00:18]} Rd5+ {[%emt 0:00:08]} 34. Ke3 {[%emt 0:00:20]} Re5+ {[%emt 0:01:20]} 35. Kd2 {[%emt 0:00:23]} Kd7 {[%emt 0:01:37]} 36. Kd3 {[%emt 0:01:51]} g5 {[%emt 0:03:12]} 37. Kd4 {[%emt 0:00:48]} Re2 {[%emt 0:00:12]} 38. f4 {[%emt 0:03:23]} gxf4 {[%emt 0:01:03]} 39. Rh3 {[%emt 0:00:07]} Rxg2 {[%emt 0:00:16]} 40. Rxh5 {[%emt 0:00:04]} 1/2-1/2